bitfinex/quotes_BTCUSD_20250303
["timestamp","ask_amount","ask_price","bid_price","bid_amount"]
[1741021118396,0.89588385,90414.0,90413.0,0.00211882]
[1741021119357,0.90720337,90414.0,90413.0,0.00211882]
[1741021119571,0.90720337,90414.0,90413.0,0.00228932]
[1741021119962,0.91569972,90414.0,90413.0,0.00228932]
[1741021120237,0.91669972,90414.0,90413.0,0.00228932]
[1741021120966,0.93404204,90414.0,90413.0,0.00228932]
[1741021121790,1.01174204,90414.0,90413.0,0.00228932]
[1741021122406,1.01174204,90414.0,90391.0,0.0004]
[1741021122407,0.31454085,90413.0,90391.0,0.0004]
[1741021122595,0.48045085,90410.0,90409.0,0.00045875]
[1741021123794,0.80385085,90410.0,90409.0,0.00045875]
[1741021125440,0.80485085,90410.0,90409.0,0.00045875]
[1741021126166,0.80385085,90410.0,90409.0,0.00045875]
[1741021126579,0.78931,90410.0,90409.0,0.00045875]
[1741021126773,0.88131,90410.0,90409.0,0.00045875]
[1741021126913,0.89985085,90410.0,90409.0,0.00045875]
[1741021129165,0.89585085,90410.0,90409.0,0.00045875]
[1741021129697,0.89985085,90410.0,90409.0,0.00045875]
[1741021130255,0.90385085,90410.0,90409.0,0.00045875]
[1741021130398,0.79731,90410.0,90409.0,0.00045875]
[1741021130611,0.79331,90410.0,90409.0,0.00045875]
[1741021130810,0.79631,90410.0,90409.0,0.00045875]
[1741021131010,0.81085085,90410.0,90409.0,0.00045875]
[1741021131857,0.66228394,90410.0,90409.0,0.00045875]
[1741021132178,0.80385085,90410.0,90409.0,0.00045875]
[1741021133242,0.63794085,90410.0,90409.0,0.00045875]
[1741021133584,0.80385085,90410.0,90409.0,0.00045875]
[1741021134797,0.82119391,90410.0,90409.0,0.00045875]
[1741021134975,0.65528391,90410.0,90409.0,0.00045875]
[1741021135534,0.65628391,90410.0,90409.0,0.00045875]
[1741021135943,0.63894085,90410.0,90409.0,0.00045875]
[1741021137261,0.80485085,90410.0,90409.0,0.00045875]
[1741021138808,0.97793174,90410.0,90409.0,0.00045875]
[1741021139030,0.88725085,90410.0,90409.0,0.00045875]
[1741021139249,0.88625085,90410.0,90409.0,0.00045875]
[1741021139490,0.90359517,90410.0,90409.0,0.00045875]
[1741021139658,0.90759517,90410.0,90409.0,0.00045875]
[1741021139856,0.165943,90392.0,90380.0,0.0003404]
[1741021140071,0.50388385,90392.0,90380.0,0.0003404]
[1741021140491,0.3234,90392.0,90391.0,0.166345]
[1741021140618,0.3234,90408.0,90407.0,0.165916]
[1741021140764,0.02483136,90410.0,90409.0,0.213112]
[1741021141174,0.0421726,90410.0,90409.0,0.213112]
[1741021141373,0.0381726,90410.0,90409.0,0.213112]
[1741021142888,0.01745957,90410.0,90409.0,0.213112]
[1741021144642,0.01845957,90410.0,90409.0,0.213112]
[1741021145122,0.01845957,90410.0,90409.0,0.295212]
[1741021145291,0.0774,90468.0,90412.0,0.3]
[1741021145518,0.3234,90453.0,90438.0,0.165859]
[1741021145716,0.09188,90462.0,90438.0,0.293859]
[1741021145872,0.00045979,90439.0,90438.0,0.293859]
[1741021146257,0.00045979,90439.0,90438.0,0.292859]
[1741021147194,0.3234,90481.0,90480.0,0.165782]
[1741021147395,0.3234,90481.0,90438.0,0.128]
[1741021147396,0.3234,90481.0,90460.0,0.28270186]
[1741021147572,0.42214851,90482.0,90481.0,0.16578]
[1741021148758,0.006,90481.0,90476.0,0.0494]
[1741021149023,0.006,90481.0,90477.0,0.165787]
[1741021149180,0.32379614,90482.0,90478.0,0.165785]
[1741021149783,0.32379614,90482.0,90478.0,0.165784]
[1741021149991,0.32379614,90482.0,90477.0,0.165787]
[1741021150196,0.32379614,90482.0,90476.0,0.0494]
[1741021150635,0.32379614,90482.0,90480.0,0.001]
[1741021150848,0.32379614,90482.0,90480.0,0.165782]
[1741021151071,0.32379614,90482.0,90479.0,0.165784]
[1741021151245,0.32379614,90482.0,90477.0,0.003]
[1741021151429,0.32379614,90482.0,90476.0,0.165789]
[1741021151602,0.32379614,90482.0,90480.0,0.003]
[1741021151803,0.01454085,90481.0,90480.0,0.003]
[1741021152178,0.3234,90481.0,90460.0,0.0457]
[1741021152330,0.3234,90481.0,90480.0,0.165782]
[1741021152530,0.3234,90481.0,90479.0,0.002]
[1741021152826,0.165782,90480.0,90479.0,0.002]
[1741021153228,0.48032285,90480.0,90479.0,0.002]
[1741021153635,0.01454085,90477.0,90446.0,0.0488]
[1741021153840,0.3234,90476.0,90446.0,0.0488]
[1741021154039,0.3234,90476.0,90469.0,0.165801]
[1741021154243,0.3234,90478.0,90459.0,0.221094]
[1741021154446,0.3234,90478.0,90464.0,0.221081]
[1741021154654,0.16579,90476.0,90463.0,0.165811]
[1741021154970,0.165791,90475.0,90463.0,0.165811]
[1741021155171,0.3234,90478.0,90467.0,0.165805]
[1741021155367,0.3234,90478.0,90447.0,0.221123]
[1741021155368,0.3234,90478.0,90448.0,0.00154752]
[1741021155699,0.3234,90478.0,90468.0,0.165802]
[1741021155846,0.3234,90478.0,90449.0,0.221119]
[1741021156050,0.3234,90478.0,90450.0,0.28424938]
[1741021156250,0.3234,90478.0,90477.0,0.165787]
[1741021156448,0.32379614,90482.0,90461.0,0.221089]
[1741021156654,0.32379614,90482.0,90473.0,0.165793]
[1741021156882,0.32379614,90482.0,90464.0,0.002]
[1741021157085,0.32379614,90482.0,90444.0,0.31124253]
[1741021157288,0.32379614,90482.0,90450.0,0.002]
[1741021157492,0.32379614,90482.0,90451.0,0.00154743]
[1741021157670,0.000341,90478.0,90451.0,0.00154743]
[1741021157866,0.165793,90474.0,90473.0,0.001]
[1741021158229,0.166127,90478.0,90463.0,0.221083]
[1741021158410,0.000341,90478.0,90450.0,0.001]
[1741021158566,0.000341,90478.0,90451.0,0.00154743]
[1741021159658,0.000341,90478.0,90450.0,0.001]
[1741021159898,0.221063,90472.0,90444.0,0.01279004]
[1741021160133,0.01454085,90477.0,90444.0,0.01124253]
[1741021160366,0.165793,90474.0,90473.0,0.003]
[1741021160600,0.3234,90474.0,90439.0,0.3]
[1741021160861,0.3234,90476.0,90450.0,0.002]
[1741021161089,0.3234,90476.0,90447.0,0.221123]
[1741021161287,0.3234,90476.0,90446.0,0.0508]
[1741021161519,0.3234,90476.0,90468.0,0.165804]
[1741021161721,0.3234,90476.0,90475.0,0.165791]
[1741021162576,0.3234,90476.0,90452.0,0.3]
[1741021162779,0.3234,90476.0,90473.0,0.165794]
[1741021162994,0.3234,90476.0,90465.0,0.221078]
[1741021163211,0.3234,90476.0,90470.0,0.1658]
[1741021163567,0.3234,90476.0,90446.0,0.0488]
[1741021163568,0.221067,90470.0,90446.0,0.0488]
[1741021163771,0.3234,90470.0,90446.0,0.0488]
[1741021163912,0.3234,90470.0,90452.0,0.221111]
[1741021164108,0.165807,90467.0,90446.0,0.0488]
[1741021164495,0.3234,90470.0,90446.0,0.0488]
[1741021164621,0.165821,90459.0,90448.0,0.16584]
[1741021164818,0.01733155,90462.0,90433.0,0.0465]
[1741021165060,0.221089,90461.0,90433.0,0.0465]
[1741021165263,0.221086,90463.0,90434.0,0.221155]
[1741021165426,0.221091,90461.0,90435.0,0.221153]
[1741021165807,0.3234,90466.0,90452.0,0.165833]
[1741021166042,0.544479,90466.0,90452.0,0.165832]
[1741021166226,0.544479,90466.0,90433.0,0.04804777]
[1741021166227,0.3234,90466.0,90433.0,0.04804777]
[1741021166370,0.3234,90466.0,90440.0,0.28270186]
[1741021166562,0.3234,90466.0,90456.0,0.221101]
[1741021166762,0.3234,90466.0,90435.0,0.3]
[1741021167003,0.544479,90466.0,90442.0,0.221136]
[1741021167225,0.3234,90466.0,90433.0,0.0465]
[1741021167435,0.3234,90466.0,90435.0,0.3]
[1741021167590,0.3234,90466.0,90452.0,0.001]
[1741021167790,0.3234,90466.0,90465.0,0.165809]
[1741021168060,0.3234,90468.0,90457.0,0.221099]
[1741021168262,0.3234,90468.0,90467.0,0.165806]
[1741021168998,0.3234,90492.0,90477.0,0.165787]
[1741021169244,0.3234,90492.0,90465.0,0.00154721]
[1741021169436,0.02062459,90468.0,90467.0,0.165806]
[1741021170035,0.02062459,90468.0,90461.0,0.221088]
[1741021170302,0.02062459,90468.0,90456.0,0.221101]
[1741021170450,0.02062459,90468.0,90465.0,0.001]
[1741021170657,0.02062459,90467.0,90459.0,0.01115344]
[1741021171514,0.02062459,90467.0,90460.0,0.0483]
[1741021172368,0.165817,90461.0,90460.0,0.002]
[1741021172742,0.165817,90461.0,90436.0,0.0001705]
[1741021172743,0.3234,90461.0,90436.0,0.0001705]
[1741021172923,0.01733055,90467.0,90443.0,0.165849]
[1741021172924,0.165826,90456.0,90443.0,0.165849]
[1741021173266,0.3234,90466.0,90436.0,0.0001705]
[1741021173267,0.165817,90461.0,90460.0,0.004]
[1741021173503,0.489217,90461.0,90460.0,0.004]
[1741021173711,0.50654897,90461.0,90460.0,0.006]
[1741021174056,0.165827,90456.0,90443.0,0.165849]
[1741021174300,0.165827,90456.0,90443.0,0.169849]
[1741021174508,0.34073197,90461.0,90444.0,0.00154777]
[1741021174711,0.34073197,90461.0,90460.0,0.165819]
[1741021174889,0.01733197,90461.0,90460.0,0.165819]
[1741021175085,0.01733197,90461.0,90460.0,0.215219]
[1741021176021,0.01733197,90461.0,90460.0,0.217219]
[1741021176327,0.01733197,90461.0,90460.0,0.215219]
[1741021176550,0.01733197,90461.0,90460.0,0.219219]
[1741021176684,0.000341,90478.0,90477.0,0.165787]
[1741021177091,0.000341,90478.0,90466.0,0.221075]
[1741021177270,0.000341,90478.0,90477.0,0.165787]
[1741021177577,0.000341,90478.0,90477.0,0.164787]
[1741021178643,0.000341,90478.0,90475.0,0.221054]
[1741021178860,0.000341,90478.0,90460.0,0.0494]
[1741021179063,0.000341,90478.0,90477.0,0.002]
[1741021179464,0.166127,90478.0,90477.0,0.002]
[1741021179967,0.000341,90478.0,90477.0,0.002]
[1741021180202,0.000341,90478.0,90477.0,0.167787]
[1741021180402,0.000341,90478.0,90477.0,0.165787]
[1741021180788,0.001341,90478.0,90477.0,0.165787]
[1741021180916,0.000341,90478.0,90477.0,0.165787]
[1741021181123,0.01766808,90478.0,90477.0,0.165787]
[1741021181528,0.000341,90478.0,90477.0,0.165787]
[1741021181931,0.000341,90478.0,90460.0,0.0494]
[1741021182165,0.000341,90478.0,90477.0,0.002]
[1741021182808,0.165786,90478.0,90477.0,0.002]
[1741021183360,0.3234,90489.0,90477.0,0.002]
[1741021183591,0.3234,90489.0,90447.0,0.0468]
[1741021183592,0.01454085,90487.0,90447.0,0.0468]
[1741021183804,0.01454085,90469.0,90439.0,0.0001705]
[1741021183980,0.01454085,90467.0,90439.0,0.1660275]
[1741021184175,0.01454085,90463.0,90439.0,0.0001705]
[1741021184431,0.01454085,90465.0,90450.0,0.165835]
[1741021184589,0.165822,90459.0,90442.0,0.16585]
[1741021184789,0.165811,90464.0,90440.0,0.221141]
[1741021184996,0.165825,90457.0,90441.0,0.165852]
[1741021185210,0.09148,90461.0,90439.0,0.0001705]
[1741021185410,0.165855,90440.0,90439.0,0.0001705]
[1741021185588,0.489255,90440.0,90439.0,0.0001705]
[1741021186002,0.80379585,90440.0,90439.0,0.0001705]
[1741021186229,0.80379585,90440.0,90439.0,0.00056664]
[1741021186868,0.80379585,90440.0,90439.0,0.00356664]
[1741021187031,0.80379585,90440.0,90439.0,0.00056664]
[1741021188473,0.6234,90440.0,90439.0,0.00256664]
[1741021188698,0.789255,90440.0,90439.0,0.00256664]
[1741021188879,0.6234,90440.0,90439.0,0.00256664]
[1741021189444,0.3234,90440.0,90439.0,0.00256664]
[1741021189656,0.489255,90440.0,90439.0,0.00256664]
[1741021190922,0.91271229,90440.0,90439.0,0.00256664]
[1741021191098,0.465861,90437.0,90436.0,0.00013051]
[1741021191304,0.22124,90400.0,90392.0,0.0477]
[1741021191503,0.22124,90400.0,90391.0,0.0005705]
[1741021191504,0.165943,90392.0,90391.0,0.0005705]
[1741021191910,0.3234,90392.0,90391.0,0.00068929]
[1741021192152,0.3234,90392.0,90387.0,0.10025252]
[1741021192366,0.3234,90392.0,90387.0,0.00214742]
[1741021193512,0.3234,90392.0,90391.0,0.001]
[1741021193785,0.3234,90392.0,90391.0,0.166945]
[1741021194134,0.3234,90392.0,90391.0,0.001]
[1741021194454,0.3234,90392.0,90391.0,0.166945]
[1741021194815,0.34074266,90392.0,90391.0,0.165945]
[1741021195186,0.01734266,90392.0,90391.0,0.165945]
[1741021195359,0.01734266,90392.0,90391.0,0.1661151]
[1741021195738,0.01734266,90392.0,90391.0,0.1691151]
[1741021195918,0.3234,90407.0,90391.0,0.0031701]
[1741021196128,0.3234,90408.0,90391.0,0.0031701]
[1741021196332,0.3234,90408.0,90407.0,0.165916]
[1741021196768,0.3234,90408.0,90391.0,0.0031701]
[1741021197309,0.3234,90408.0,90398.0,0.165931]
[1741021197574,0.3234,90408.0,90393.0,0.221256]
[1741021197772,0.3234,90408.0,90391.0,0.0001701]
[1741021197896,0.3234,90408.0,90398.0,0.165931]
[1741021198092,0.02058984,90407.0,90395.0,0.165936]
[1741021198297,0.165936,90396.0,90391.0,0.0001701]
[1741021198532,0.02058984,90407.0,90391.0,0.0001701]
[1741021198709,0.01454085,90406.0,90393.0,0.001]
[1741021198927,0.165943,90392.0,90391.0,0.0001701]
[1741021199125,0.165939,90395.0,90391.0,0.0001701]
[1741021199325,0.01454085,90405.0,90391.0,0.0001701]
[1741021199528,0.165921,90405.0,90391.0,0.0001701]
[1741021199714,0.01454085,90407.0,90391.0,0.0001701]
[1741021200047,0.165935,90397.0,90391.0,0.0001701]
[1741021200353,0.465943,90392.0,90391.0,0.0001701]
[1741021200494,0.88468385,90392.0,90391.0,0.0001701]
[1741021200695,0.8958364,90392.0,90391.0,0.0001701]
[1741021200977,0.91318339,90392.0,90391.0,0.0001701]
[1741021201207,0.74724039,90392.0,90391.0,0.0001701]
[1741021201373,0.6064364,90392.0,90391.0,0.0041701]
[1741021201532,0.3234,90392.0,90391.0,0.0041701]
[1741021201880,0.3234,90400.0,90391.0,0.0001701]
[1741021202055,0.3234,90400.0,90399.0,0.158931]
[1741021202270,0.3234,90405.0,90391.0,0.0001701]
[1741021202438,0.3234,90406.0,90405.0,0.16592]
[1741021202638,0.3234,90406.0,90391.0,0.0001701]
[1741021202639,0.006,90392.0,90391.0,0.46866367]
[1741021202845,0.3234,90424.0,90423.0,0.165886]
[1741021203047,0.3234,90433.0,90432.0,0.16587]
[1741021203247,0.0914,90444.0,90420.0,0.266189]
[1741021203456,0.0914,90444.0,90421.0,0.00154793]
[1741021203721,0.06173411,90451.0,90423.0,0.221182]
[1741021203882,0.06173411,90451.0,90429.0,0.165875]
[1741021204109,0.28270186,90440.0,90404.0,0.0473]
[1741021204536,0.28270186,90420.0,90390.0,0.0473]
[1741021204706,0.4148,90419.0,90390.0,0.0473]
[1741021204913,0.01454085,90417.0,90387.0,0.00202909]
[1741021205127,0.28270186,90410.0,90387.0,0.00202909]
[1741021205365,0.165943,90392.0,90387.0,0.00202909]
[1741021205687,0.489343,90392.0,90387.0,0.00202909]
[1741021206010,0.80388385,90392.0,90391.0,0.00028843]
[1741021206626,0.89528385,90392.0,90391.0,0.00028843]
[1741021207935,0.90372112,90392.0,90391.0,0.00028843]
[1741021208051,0.90372112,90392.0,90391.0,0.00528843]
[1741021208256,0.90372112,90392.0,90391.0,0.00028843]
[1741021208933,0.90372112,90392.0,90391.0,4.3e-07]
[1741021209198,1.08572112,90392.0,90391.0,4.3e-07]
[1741021209388,1.11462035,90392.0,90391.0,0.00017073]
[1741021209733,1.11496095,90392.0,90391.0,0.00117073]
[1741021210444,0.165951,90388.0,90387.0,8.2e-07]
[1741021210616,0.68049185,90388.0,90387.0,8.2e-07]
[1741021210771,0.72809185,90388.0,90387.0,8.2e-07]
[1741021211193,0.72809185,90388.0,90361.0,0.00151162]
[1741021211194,0.465998,90362.0,90361.0,0.00151162]
[1741021211395,0.97749885,90362.0,90361.0,0.00151162]
[1741021212200,0.97735228,90362.0,90361.0,0.00151162]
[1741021212426,1.08626872,90362.0,90361.0,0.00190668]
[1741021212625,1.14242451,90362.0,90361.0,0.00039506]
[1741021212871,1.15086208,90362.0,90361.0,0.00039506]
[1741021213028,1.15686208,90362.0,90361.0,0.00139506]
[1741021213224,1.25686208,90362.0,90361.0,0.0006]
[1741021213874,1.15686208,90362.0,90361.0,0.0006]
[1741021214181,1.25686208,90362.0,90361.0,0.0006]
[1741021214309,0.48055785,90352.0,90348.0,0.0001703]
[1741021214914,0.31735544,90352.0,90348.0,0.0001703]
[1741021215109,0.49791329,90352.0,90348.0,0.0001703]
[1741021215367,0.48055785,90352.0,90348.0,0.0001703]
[1741021215743,0.302,90352.0,90348.0,0.0001703]
[1741021215952,0.466017,90352.0,90348.0,0.0001703]
[1741021216328,0.3,90352.0,90348.0,0.0001703]
[1741021216734,0.3234,90353.0,90352.0,0.166017]
[1741021217053,0.3234,90365.0,90348.0,0.0001703]
[1741021217254,0.166017,90352.0,90348.0,0.0001703]
[1741021217468,0.48055785,90352.0,90348.0,0.0001703]
[1741021217872,0.48455785,90352.0,90348.0,0.0001703]
[1741021218253,0.48055785,90352.0,90348.0,0.0001703]
[1741021220592,0.48155785,90352.0,90348.0,0.0001703]
[1741021221416,0.49991229,90352.0,90351.0,0.0005703]
[1741021221699,0.82331229,90352.0,90351.0,0.0005703]
[1741021223684,0.82131229,90352.0,90351.0,0.0005703]
[1741021223875,0.82231229,90352.0,90351.0,0.0005703]
[1741021224645,0.82131229,90352.0,90351.0,0.0005703]
[1741021224842,0.82431229,90352.0,90351.0,0.0005703]
[1741021225249,0.93022873,90352.0,90351.0,0.0005703]
[1741021225483,0.82431229,90352.0,90351.0,0.0005703]
[1741021226212,0.80695785,90352.0,90351.0,0.0005703]
[1741021226348,0.18056485,90348.0,90347.0,0.0062156]
[1741021227572,0.18156485,90348.0,90347.0,0.0062156]
[1741021227778,0.18056485,90348.0,90347.0,0.0062156]
[1741021228213,0.18256485,90348.0,90347.0,0.0062156]
[1741021228416,0.18056485,90348.0,90347.0,0.0062156]
[1741021228843,0.18256485,90348.0,90347.0,0.0062156]
[1741021229264,0.19992032,90348.0,90347.0,0.0062156]
[1741021229645,0.60883676,90348.0,90347.0,0.0062156]
[1741021229844,0.60883676,90348.0,90334.0,0.00117076]
[1741021229845,0.48056885,90346.0,90334.0,0.00117076]
[1741021230265,0.55836885,90346.0,90334.0,0.00117076]
[1741021230679,0.466048,90335.0,90334.0,0.00117076]
[1741021230846,0.24877,90323.0,90322.0,0.0001701]
[1741021231052,0.24877,90323.0,90290.0,0.0499]
[1741021231053,0.18063085,90312.0,90290.0,0.0499]
[1741021231252,0.166129,90291.0,90290.0,0.0256404]
[1741021231654,0.166129,90291.0,90290.0,0.02575924]
[1741021232027,0.166129,90291.0,90290.0,0.00011884]
[1741021233445,0.789529,90291.0,90290.0,0.00011884]
[1741021233668,0.790529,90291.0,90290.0,0.00028914]
[1741021233909,0.789529,90291.0,90290.0,0.00028914]
[1741021234157,0.80406985,90291.0,90290.0,0.00028914]
[1741021234392,0.82243576,90291.0,90290.0,0.00028914]
[1741021235813,0.9313522,90291.0,90290.0,0.00028914]
[1741021236035,0.9313522,90291.0,90290.0,1.4e-07]
[1741021236036,0.82243576,90291.0,90290.0,1.4e-07]
[1741021236711,0.82143576,90291.0,90290.0,1.4e-07]
[1741021237376,0.3,90282.0,90280.0,7.89e-05]
[1741021237608,0.3,90282.0,90271.0,0.0004]
[1741021237609,1.06346756,90281.0,90271.0,0.00032201]
[1741021237926,1.06346756,90281.0,90258.0,0.01305531]
[1741021237927,0.48072885,90259.0,90258.0,0.01305531]
[1741021238207,0.95609439,90259.0,90258.0,0.0134523]
[1741021238750,0.95458464,90259.0,90258.0,0.0134523]
[1741021238945,0.95458464,90259.0,90258.0,0.0084523]
[1741021239368,0.89540885,90259.0,90258.0,0.0084523]
[1741021239585,0.90374381,90259.0,90258.0,0.0084523]
[1741021239766,0.9609181,90259.0,90258.0,0.0084523]
[1741021240322,0.6375181,90259.0,90258.0,0.0084523]
[1741021241146,0.6375181,90259.0,90258.0,0.0064523]
[1741021241371,0.5977164,90259.0,90258.0,0.0064523]
[1741021242168,0.5064364,90259.0,90258.0,0.0064523]
[1741021242378,0.49189555,90259.0,90258.0,0.0064523]
[1741021242582,0.02570755,90259.0,90258.0,0.0064523]
[1741021242781,0.27484059,90259.0,90258.0,0.0064523]
[1741021243465,0.01737259,90259.0,90258.0,0.0064523]
[1741021243592,0.18356059,90259.0,90258.0,0.0064523]
[1741021243794,0.19810144,90259.0,90258.0,0.0064523]
[1741021244316,0.19810144,90259.0,90231.0,0.0004]
[1741021244317,0.01454085,90256.0,90231.0,0.0004]
[1741021244517,0.01454085,90232.0,90231.0,0.00051897]
[1741021244715,0.09128,90234.0,90231.0,0.00051897]
[1741021245099,0.10865407,90234.0,90233.0,0.166236]
[1741021245298,0.01737407,90234.0,90233.0,0.166236]
[1741021245524,0.3,90247.0,90231.0,0.00051897]
[1741021245688,0.09128,90248.0,90247.0,0.16621]
[1741021246084,0.09128,90248.0,90231.0,0.00051897]
[1741021246085,0.09128,90248.0,90235.0,0.221641]
[1741021246400,0.166227,90239.0,90231.0,0.00051897]
[1741021246622,0.166228,90238.0,90231.0,0.16675697]
[1741021246827,0.09128,90248.0,90231.0,0.00051897]
[1741021247226,0.09128,90248.0,90233.0,0.221648]
[1741021247561,0.166238,90232.0,90231.0,0.00051897]
[1741021247944,0.18077885,90232.0,90231.0,0.00051897]
[1741021248740,0.01454085,90232.0,90231.0,0.00051897]
[1741021249167,0.01454085,90232.0,90231.0,0.16675797]
[1741021249405,0.01454085,90232.0,90231.0,0.00051897]
[1741021250008,0.01454085,90232.0,90231.0,0.16675797]
[1741021250809,0.09128,90242.0,90231.0,0.00051897]
[1741021251012,0.3,90240.0,90231.0,0.00051897]
[1741021251334,0.01454085,90239.0,90231.0,0.00051897]
[1741021251536,0.01454085,90239.0,90238.0,0.166227]
[1741021251688,0.01454085,90241.0,90239.0,0.166223]
[1741021251878,0.01454085,90241.0,90240.0,0.166223]
[1741021252473,0.01454085,90241.0,90232.0,0.22165]
[1741021252684,0.00838918,90243.0,90231.0,0.00051897]
[1741021252894,0.00838918,90243.0,90242.0,0.166219]
[1741021253110,0.01153864,90280.0,90243.0,0.079]
[1741021253307,0.37473173,90290.0,90251.0,0.332404]
[1741021253546,0.37473173,90290.0,90284.0,0.166141]
[1741021253741,0.01454085,90289.0,90243.0,0.079]
[1741021253976,0.01736766,90281.0,90251.0,0.3]
[1741021254219,0.01736766,90281.0,90280.0,0.166149]
[1741021254982,0.0177631,90281.0,90252.0,0.0477]
[1741021255182,0.0177631,90281.0,90280.0,0.166149]
[1741021256120,0.00039544,90281.0,90280.0,0.166149]
[1741021258036,0.000341,90291.0,90280.0,0.3469]
[1741021258210,0.01156304,90335.0,90281.0,0.3850022]
[1741021258406,0.09971427,90337.0,90290.0,0.28345173]
[1741021258648,0.3,90335.0,90326.0,0.166063]
[1741021258825,0.3,90335.0,90291.0,0.00155012]
[1741021258826,0.3,90327.0,90299.0,0.221484]
[1741021259027,0.00011862,90328.0,90281.0,0.3]
[1741021259473,0.02091868,90327.0,90282.0,0.00155036]
[1741021259606,0.01454085,90319.0,90280.0,0.0469]
[1741021259808,0.31454085,90317.0,90280.0,0.0469]
[1741021260009,0.01454085,90312.0,90280.0,0.0469]
[1741021260235,0.22142,90326.0,90280.0,0.0469]
[1741021260433,0.00011862,90328.0,90327.0,0.166063]
[1741021260839,0.00011862,90328.0,90319.0,0.0489]
[1741021261561,0.00011862,90328.0,90303.0,0.3]
[1741021261784,0.00011862,90328.0,90327.0,0.166063]
[1741021261979,0.00011862,90328.0,90304.0,0.00155013]
[1741021262135,0.16618062,90328.0,90308.0,0.221462]
[1741021262342,0.00011862,90328.0,90303.0,0.521476]
[1741021262555,0.00011862,90328.0,90326.0,0.166064]
[1741021262722,0.00011862,90328.0,90327.0,0.166063]
[1741021263347,0.01747518,90328.0,90327.0,0.166063]
[1741021264453,0.01747518,90328.0,90327.0,0.213263]
[1741021264662,0.00011862,90328.0,90327.0,0.21481275]
[1741021265003,0.00201,90344.0,90343.0,0.166033]
[1741021265414,0.00201,90344.0,90339.0,0.221386]
[1741021265609,0.00201,90344.0,90343.0,0.166033]
[1741021265837,0.00201,90344.0,90329.0,0.00154954]
[1741021266040,0.00201,90344.0,90329.0,0.0015496]
[1741021266173,0.00201,90344.0,90327.0,0.0472]
[1741021266776,0.166056,90331.0,90320.0,0.166075]
[1741021266982,0.166081,90317.0,90311.0,0.0496]
[1741021267182,0.01454085,90338.0,90311.0,0.0496]
[1741021267377,0.3,90339.0,90311.0,0.0496]
[1741021267723,0.3,90339.0,90310.0,0.00011862]
[1741021267724,0.166092,90311.0,90310.0,0.00011862]
[1741021267967,0.27179285,90311.0,90310.0,0.00011862]
[1741021270213,0.57179285,90311.0,90310.0,0.00011862]
[1741021270670,0.58332489,90311.0,90310.0,0.00011862]
[1741021271076,0.58366589,90311.0,90310.0,0.00011862]
[1741021271278,0.000341,90311.0,90310.0,0.00011862]
[1741021272667,0.01770204,90311.0,90310.0,0.00011862]
[1741021273088,0.18379404,90311.0,90310.0,0.00011862]
[1741021273734,0.19833489,90311.0,90310.0,0.00011862]
[1741021274437,0.49833489,90311.0,90310.0,0.00011862]
[1741021274805,0.33224289,90311.0,90310.0,0.00011862]
[1741021275404,0.31488185,90311.0,90310.0,0.00011862]
[1741021275607,0.48097385,90311.0,90310.0,0.00011862]
[1741021279430,0.466092,90311.0,90310.0,0.00011862]
[1741021280774,0.3,90307.0,90255.0,0.0463]
[1741021280929,0.3,90299.0,90270.0,0.166167]
[1741021281132,0.00011882,90311.0,90265.0,0.01129957]
[1741021281462,0.00011882,90311.0,90260.0,0.374618]
[1741021281463,0.01736574,90295.0,90271.0,0.00155076]
[1741021281676,0.01736574,90295.0,90294.0,0.166123]
[1741021282044,0.01736574,90295.0,90265.0,0.01117676]
[1741021282374,0.01736574,90295.0,90267.0,0.0015506]
[1741021282505,0.01736574,90295.0,90269.0,0.3]
[1741021282711,0.01736574,90295.0,90279.0,0.166149]
[1741021282931,0.166133,90289.0,90279.0,0.166149]
[1741021283131,0.01736574,90295.0,90265.0,0.01117676]
[1741021283132,0.166138,90286.0,90265.0,0.23274476]
[1741021283332,0.01736574,90295.0,90278.0,0.166153]
[1741021283595,0.01454085,90302.0,90256.0,0.22313975]
[1741021283803,0.31454085,90302.0,90255.0,0.3463]
[1741021283991,0.01454085,90302.0,90256.0,0.00155075]
[1741021284115,0.31454085,90302.0,90256.0,0.00155075]
[1741021284334,0.31454085,90299.0,90256.0,0.00155075]
[1741021284541,0.3,90289.0,90255.0,0.0463]
[1741021284770,0.01454085,90288.0,90250.0,0.166204]
[1741021284967,0.3,90279.0,90239.0,0.0483]
[1741021285186,0.166204,90251.0,90240.0,0.166222]
[1741021285403,0.166204,90251.0,90239.0,0.0483]
[1741021285404,0.3,90277.0,90239.0,0.0483]
[1741021285595,0.3,90277.0,90241.0,0.00155128]
[1741021285794,0.3,90271.0,90241.0,0.00155128]
[1741021286164,0.3,90271.0,90243.0,0.221623]
[1741021286378,0.3,90271.0,90244.0,0.00155115]
[1741021286635,0.31454085,90276.0,90253.0,0.221596]
[1741021286843,0.31454085,90276.0,90241.0,0.00039544]
[1741021286844,0.01736944,90265.0,90264.0,0.166179]
[1741021288211,0.01736944,90265.0,90258.0,0.221586]
[1741021288212,0.09112,90279.0,90278.0,0.166153]
[1741021288548,0.09112,90279.0,90248.0,0.221609]
[1741021288742,0.09112,90279.0,90269.0,0.166168]
[1741021288956,0.09112,90279.0,90241.0,0.3]
[1741021289141,0.09112,90279.0,90242.0,0.00155096]
[1741021289349,0.01454085,90278.0,90242.0,0.0019464]
[1741021289569,0.16618,90264.0,90242.0,0.0019464]
[1741021289770,0.3,90278.0,90242.0,0.2235694]
[1741021289975,0.01454085,90277.0,90242.0,0.00039544]
[1741021290173,0.01454085,90275.0,90242.0,0.00039544]
[1741021290514,0.31454085,90273.0,90242.0,0.00039544]
[1741021290716,0.166217,90243.0,90242.0,0.00039544]
[1741021290868,0.31454085,90269.0,90242.0,0.00039544]
[1741021290869,0.01454085,90268.0,90242.0,0.00039544]
[1741021291059,0.3,90269.0,90242.0,0.00039544]
[1741021291060,0.01454085,90266.0,90242.0,0.00039544]
[1741021291408,0.01454085,90268.0,90242.0,0.00039544]
[1741021291609,0.3,90269.0,90242.0,0.00039544]
[1741021291610,0.221611,90248.0,90242.0,0.00039544]
[1741021291813,0.0781,90272.0,90242.0,0.00039544]
[1741021291814,0.166217,90243.0,90242.0,0.00039544]
[1741021292067,0.01155828,90246.0,90242.0,0.00039544]